Cogmind - Beta 13 @@@ ROGUE MODE // 2024.07.15 @ 20:58:45 Player: TheGreatPlup Result: Destroyed self via exploding Nuclear Reactor Performance ------------- Evolutions (0) 0 Regions Visited (1) 200 Robots Destroyed (15) 75 Value Destroyed (343) 343 Prototype IDs (0) 0 Alien Tech Used (0) 0 Bonus (0) 0 TOTAL SCORE: 618 Bonus ------- None Cogmind --------- Core Integrity 0/250 Matter 300/300 Energy 250/250 System Corruption 0% Temperature Cool (12) Movement Walking (120) Location -10/Materials Parts ------- > --- POWER (1) -------- Ion Engine > --- PROPULSION (2) --- Aluminum Leg Aluminum Leg > --- UTILITY (2) ------ Small Storage Unit Utility Shielding > --- WEAPON (2) ------- EM Pulse Gun Medium Laser > --- INVENTORY (8) ---- Light Ion Engine Light Ion Engine Aluminum Leg Large Matter Pod (150) Small Laser Light Assault Rifle Light Assault Rifle Peak State ------------ > --- POWER ------------ Ion Engine > --- PROPULSION ------- Light Treads Light Treads > --- UTILITY ---------- Small Storage Unit Utility Shielding > --- WEAPON ----------- EM Pulse Gun Assault Rifle > --- INVENTORY -------- Aluminum Leg Aluminum Leg Large Matter Pod Medium Laser [Rating: 7] Favorites ----------- Power Ion Engine Engine Ion Engine Propulsion Light Treads Treads Light Treads Leg Aluminum Leg Utility Small Storage Unit Storage Small Storage Unit Protection Utility Shielding Weapon EM Pulse Gun Energy Gun EM Pulse Gun Ballistic Gun Assault Rifle Build | -11 -10 ------- Run | Yrd Mat Slots Evolved . | . . Power . | . . Propulsion . | . . Utility . | . . Weapon . | . . Parts Attached 13 | 7 6 Power 2 | 1 1 Engine 2 | 1 1 Core . | . . Reactor . | . . Propulsion 4 | 2 2 Treads 2 | 2 . Leg 2 | . 2 Wheel . | . . Hover . | . . Flight . | . . Utility 2 | 1 1 Device . | . . Storage 1 | 1 . Processor . | . . Hackware . | . . Protection 1 | . 1 Artifact . | . . Weapon 5 | 3 2 Energy Gun 4 | 2 2 Energy Cannon . | . . Ballistic Gun 1 | 1 . Ballistic Cannon . | . . Launcher . | . . Special Weapon . | . . Impact Weapon . | . . Slashing Weapon . | . . Piercing Weapon . | . . Special Melee Weapon . | . . Unidentified Prototypes . | . . Parts Lost 4 | . 4 Power 1 | . 1 Propulsion 1 | . 1 Utility . | . . Weapon 2 | . 2 Highest Loss Streak 2 | . 2 To Critical Strikes . | . . Average Slot Usage (%) 87 | . 87 Engine 13 | . 13 Treads 19 | . 19 Leg 7 | . 7 Storage 14 | . 14 Protection 7 | . 7 Energy Gun 14 | . 14 Ballistic Gun 10 | . 10 Naked Turns . | . . Heaviest Build 15 | 14 15 Greatest Support 40 | 40 40 Greatest Overweight (x) . | . . Average Overweight (x) . | . . Largest Inventory Capacity 8 | 8 8 Average Capacity 7 | 6 8 Most Carried 7 | 5 7 Average Carried 4 | 4 4 Final Capacity 8 | 8 8 Final Carried 7 | 4 7 Class Distribution -------------------- 100% | Mutant Dominant Class ---------------- Mutant | -10/Materials Resources | -11 -10 ----------- Run | Yrd Mat Matter Collected 574 | 193 381 Remotely . | . . Salvage Created 502 | . 502 Parts 32 | . 32 Haulers Intercepted . | . . Recyclers Shooed . | . . Parts Field Recycled . | . . Retrieved Matter . | . . Parts Self-Destructed . | . . Prevented . | . . Kills | -11 -10 ------- Run | Yrd Mat Combat Hostiles Destroyed 13 | . 13 Guns 13 | . 13 Classes Destroyed 4 | . 4 Recycler 1 | . 1 Watcher 1 | . 1 Swarmer 6 | . 6 Grunt 7 | . 7 Best Kill Streak 5 | . 5 Combat Bots Only 5 | . 5 Max Kills in Single Turn 2 | . 2 Gunslinging . | . . Exploded . | . . Melee . | . . Uniques/NPCs Destroyed . | . . Combat | -11 -10 -------- Run | Yrd Mat Hostile Shots Fired 95 | . 95 Missed 21 | . 21 Damage Taken 953 | . 953 Core 302 | . 302 Absorbed by Shields . | . . Redirected to Shielding 23 | . 23 Core Remaining (%) 100 | 100 . Volleys Fired 49 | . 49 Largest 2 | . 2 Hottest 90 | . 90 Shots Fired 78 | . 78 Gun 78 | . 78 Cannon . | . . Launcher . | . . Special . | . . Kinetic 38 | . 38 Thermal 8 | . 8 Explosive . | . . Electromagnetic 32 | . 32 Robot Hit Streak 6 | . 6 Robot Miss Streak 5 | . 5 Penetration Max . | . . Secondary Targets 2 | . 2 Max Gunslinging Chain 1 | . 1 Shots Hit Robots 40 | . 40 Core Hits 23 | . 23 Critical Kills . | . . Critical Parts Destroyed . | . . Critical Strikes . | . . Melee Attacks . | . . Impact . | . . Slashing . | . . Piercing . | . . Sneak Attacks . | . . Combat Hostiles . | . . Follow-up Attacks . | . . Damage Inflicted 648 | . 648 Guns 648 | . 648 Cannons . | . . Explosions . | . . Melee . | . . Ramming . | . . Kinetic 313 | . 313 Thermal 51 | . 51 Explosive . | . . Electromagnetic 284 | . 284 Impact . | . . Slashing . | . . Piercing . | . . Highest Corruption . | . . Average Corruption . | . . Corruption Purged . | . . Corruption Blocked . | . . Overload Shots . | . . Overflow Damage . | . . Projectiles . | . . Explosions . | . . Melee . | . . Knockbacks . | . . Impact . | . . Kinetic . | . . Secondary . | . . Self-Inflicted Damage 114 | . 114 Shots 1 | . 1 Rammed . | . . Targets Rammed . | . . Kicked . | . . Crushed . | . . Highest Temperature 120 | . 120 Average Temperature 39 | . 39 Received Heat Transfer 393 | . 393 Siege Activations . | . . Robots Corrupted . | . . Combat Hostiles . | . . Parts Fried 1 | . 1 Impact Corruptions . | . . Robots Melted . | . . Combat Hostiles . | . . Parts Melted . | . . Heat Transferred 148 | . 148 Parts Sabotaged . | . . Parts Stolen . | . . Parts Stripped . | . . Power Chain Reactions . | . . Alert | -11 -10 ------- Run | Yrd Mat Peak Influence 201 | . 201 Initial . | . . Average 73 | . 83 Maximum Alert Level 1 | . 1 Low Security (%) 98 | 100 98 Level 1 1 | . 1 Level 2 . | . . Level 3 . | . . Level 4 . | . . Level 5 . | . . High Security . | . . Max Security . | . . Squads Dispatched 1 | . 1 Investigation 1 | . 1 Extermination . | . . Reinforcement . | . . Assault . | . . Garrison . | . . Intercept . | . . Searches Triggered . | . . Construction Impeded . | . . Haulers Reinforced . | . . Active Scanning Responses . | . . Cargo Convoy Interrupts . | . . Stealth | -11 -10 --------- Run | Yrd Mat Distress Signals 3 | . 3 Communications Jammed . | . . Distress Signals . | . . Times Spotted 16 | . 16 Peak Tracking Total 5 | . 5 Tactical Retreats . | . . Traps | -11 -10 ------- Run | Yrd Mat Traps Triggered 1 | . 1 Indirectly . | . . Trap Hack Attempts . | . . Triggered . | . . Disarmed . | . . Reprogrammed . | . . Reused . | . . Traps Extracted . | . . Installed . | . . Triggered . | . . Machines | -11 -10 ---------- Run | Yrd Mat Machines Disabled 1 | . 1 Max in Single Turn 1 | . 1 Machines Repaired . | . . Machines Dismantled . | . . Machines Sabotaged . | . . Overloaded Fab Kills . | . . Hacking | -11 -10 --------- Run | Yrd Mat Machines Accessed . | . . Terminals . | . . Fabricators . | . . Repair Stations . | . . Recycling Units . | . . Scanalyzers . | . . Garrison Access . | . . Total Hacks . | . . Successful . | . . Failed . | . . Catastrophic . | . . Database Lockouts . | . . Manual . | . . Terminals . | . . Fabricators . | . . Repair Stations . | . . Recycling Units . | . . Scanalyzers . | . . Garrison Access . | . . Terminal Hacks . | . . Fabricator Hacks . | . . Repair Station Hacks . | . . Recycling Unit Hacks . | . . Scanalyzer . | . . Garrison Access Hacks . | . . Unauthorized Hacks . | . . Terminals . | . . Fabricators . | . . Repair Stations . | . . Recycling Units . | . . Scanalyzers . | . . Garrison Access . | . . Data Cores Recovered . | . . Used . | . . Hacking Detections . | . . Full Trace Events . | . . Feedback Events . | . . Feedback Blocked . | . . Robot Schematics Acquired . | . . Robots Built . | . . Authchips . | . . Time . | . . Total Robot Build Rating . | . . Part Schematics Acquired . | . . Parts Built . | . . Authchips . | . . Time . | . . Total Part Build Rating . | . . Parts Repaired . | . . Time . | . . Parts Recycled . | . . Recycled Matter . | . . Retrieved Matter . | . . Retrieved Components . | . . Parts Scanalyzed . | . . Part Schematics Acquired . | . . Parts Damaged . | . . Bothacking | -11 -10 ------------ Run | Yrd Mat Used RIF Installer . | . . Robots Hacked . | . . Non-combat . | . . Combat . | . . Robot Hacks Applied . | . . Relay Couplers Released . | . . Fabnet Peak Effective % . | . . Robots Rewired . | . . Allies Hacked . | . . Hacks Repelled . | . . Allies | -11 -10 -------- Run | Yrd Mat Total Allies . | . . Largest Group . | . . Highest-Rated Group . | . . Highest-Rated Ally . | . . Total Orders . | . . Ally Attacks . | . . Total Damage . | . . Kills . | . . Allies Corrupted . | . . Allies Melted . | . . Intel | -11 -10 ------- Run | Yrd Mat Robot Analysis Total . | . . Derelict Logs Recovered . | . . Drone Launches . | . . Drone Recoveries . | . . Exploration | -11 -10 ------------- Run | Yrd Mat Turns Passed 609 | 70 539 Spaces Moved 304 | 39 265 Core 11 | 11 . Treads 210 | 28 182 Legs 83 | . 83 Wheels . | . . Hover . | . . Flight . | . . Fastest Speed 50 | 50 120 Average Speed 145 | 128 147 Slowest Speed 160 | 160 160 Overloaded Moves . | . . Propulsion Burnouts . | . . Robots Hopped . | . . Cave-ins Triggered . | . . Exploration Rate (%) 29 | 4 55 Regions Visited 1 Branch Regions . Pre-discovered Areas . | . . Known Exits Taken . | . . Unknown Exits Taken 1 | 1 . Scrap Searched . | . . Spaces Dug . | . . Terrain Destroyed . | . . Melee . | . . Projectile . | . . AOE . | . . Terrain Rammed . | . . Walls Destroyed . | . . Machines Disabled . | . . Actions | -11 -10 --------- Run | Yrd Mat Total 391 | 56 335 Wait 11 | 6 5 Move 303 | 38 265 Hop . | . . Pick Up 14 | 5 9 Fast Attach 5 | 5 . Attach 7 | 1 6 Detach . | . . Swap 1 | 1 . Drop 1 | . 1 Fire 49 | . 49 Melee . | . . Ram . | . . Kick . | . . Crush . | . . Escape Stasis . | . . Rewire . | . . Trap . | . . Miscellaneous . | . . Route ------- -11/Scrapyard -10/Materials (discovered 1 exit: [*Mat]) History --------- Turn | Location | Event 6 | -11/Scrapyard | Discovered new exit (range 14) 71 | -11/Scrapyard | Entered Materials 263 | -10/Materials | Discovered new exit (range 16) 300 | -10/Materials | Build established: Mutant 433 | -10/Materials | Core integrity fell below 50% 472 | -10/Materials | Core integrity fell below 20% 610 | -10/Materials | Destroyed self via exploding Nuclear Reactor Last Messages --------------- 00477_ K-01 Serf collects debris. 00481_ G-47 Trooper destroyed. 00484_ K-01 Serf collects debris. 00487_ Acquired Aluminum Leg. 00487_ K-01 Serf collects debris. 00489_ Acquired Sml. Laser. 00490_ K-01 Serf collects debris. 00490_ Acquired 41 matter. 00493_ Acquired 65 matter. 00493_ K-01 Serf collects debris. 00499_ K-01 Serf cleans the Terminal. 00503_ K-01 Serf collects debris. 00530_ K-01 Serf cleans the Terminal. 00569_ W-16 Scout sends out distress signal. 00572_ S-10 Pest destroyed. 00582_ Acquired Lgt. Ion Engine. 00583_ K-01 Serf collects debris. 00585_ Acquired Lgt. Assault Rifle. 00594_ Acquired Lgt. Ion Engine. 00610_ Nuclear Reactor explodes. Map ----- +----------------------------------------------------+ | #????????#???# #???????????????????????????????? | | #????????# ### #???????????????????????????????? | | #????????# # #???????????????????????????????? | | ??????????# #???????????????????????????????? | | ??????????# # #???????????????????????????????? | | ??????????#### #???????????????????????????????? | | ?????????????# ###########?????????????????????? | | ?????????????# # #?????????????????????? | | ?????????????# # #?????????????????????? | | ?????????????# # """ #?????????????????????? | | ??????######## / """""??????????????????????? | | ??????# # # """""??????????????????????? | | ??????# # # """"???????????????????????? | | ??????# # # """???????????????????????? | | ??????# # # ??????????????????????? | | ####### # ###########?????????????????????? | | + # # #??????????????????????????? | | ##########+### # #??????????????????????????? | | ####### # #???????? ????????????????? | | # ######## ????????????????? | | # ## # ?????????????????? | | ########/######### ## + ??????????????????? | | #???# #???# ## #???????????????????? | | #???# #???#=%= ## #???????????????????? | | #???# """ ######+#### #???????????????????? | | #???# """ / = %= + @ #???????????????????? | | #???# """ ######%#### #???????????????????? | | ?+ """ #????# #??#######???????????????????? | | ###?# """ #????# #????????????????????????????? | | ????# #????# #????????????????????????????? | | ????# #????# #????????????????????????????? | | ????##########???? #????????????????????????????? | | ?????????????????? +????????????????????????????? | | ?????????????????? #????????????????????????????? | | ?????????????????? #????????????????????????????? | | ?????????????????? #????????????????????????????? | | ?????????????????? ?????????????????????????????? | | ????????????????? ?????????????????????????????? | | ????????????????? ?????????????????????????????? | | ????????????????? ?????????????????????????????? | | ????????????????? ?????????????????????????????? | | ????????????????? ?????????????????????????????? | | ????????????????? ?????????????????????????????? | | ?????????????????????????????????????????????????? | | ?????????????????????????????????????????????????? | | ?????????????????????????????????????????????????? | | ?????????????????????????????????????????????????? | | ?????????????????????????????????????????????????? | | ?????????????????????????????????????????????????? | | ?????????????????????????????????????????????????? | +----------------------------------------------------+ Best States ------------- Heat Dissipation 25 Energy Generation 10 Energy Capacity 250 Matter Stores 300 Matter Capacity 300 Sight Range 16 Terrain Scan Density 10 Utility Shielding 33 Evasion (%) 55 Recoil Reduction 2 Item Schematics ----------------- None Robot Schematics ------------------ None Fabricated ------------ Nothing Alien Tech Used ----------------- None Achievements -------------- None Challenges ------------ None Game ------ Seed StructuralRainbowMatrix Manual? 0 Play Time 00:09:10 Cumulative 9.7 hours Start 2024.07.15 @ 20:32:25 End 2024.07.15 @ 20:58:45 Sessions 1 Manual Loads 0 Difficulty Rogue Special Mode None Game No. 13 Rogue 13 Adventurer 0 Explorer 0 Win Type - Total 0 Types 0/0/0/0/0/0/0/0/0 Lore% 14 Gallery% 9 Achievement% 10 Wizard Run 0 Options --------- Layout 0 ASCII 0 Keyboard 0 Movement Mouse Keybinds 0 Fullscreen 2 Font 18/Smallcaps Map View 38x25 Zoom Use 98% Tactical HUD 1 Map Filters NONE Filters NONE Steam 1 RUN: 5687955c-73b4-43c3-b569-046d9685f3a4